bitfinex/quotes_SOLUSD_20230401
["timestamp","ask_amount","ask_price","bid_price","bid_amount"]
[1680317189648,37.14,20.93,20.922,109.7534]
[1680317189845,10.0,20.932,20.922,109.7534]
[1680317191451,27.14,20.93,20.922,109.7534]
[1680317191747,10.0,20.929,20.922,109.7534]
[1680317193353,10.0,20.929,20.917,112.7753]
[1680317193939,10.0,20.929,20.918,10.0]
[1680317194952,10.0,20.929,20.917,112.7753]
[1680317195251,10.0,20.929,20.918,10.0]
[1680317196756,10.0,20.929,20.917,112.7753]
[1680317198053,10.0,20.929,20.917,111.2753]
[1680317199059,10.0,20.929,20.918,10.0]
[1680317200362,10.0,20.929,20.917,111.2753]
[1680317200546,10.0,20.929,20.918,10.0]
[1680317201559,10.0,20.929,20.917,111.2753]
[1680317203161,10.0,20.929,20.918,10.0]
[1680317203551,10.0,20.929,20.917,111.2753]
[1680317208071,10.0,20.929,20.918,10.0]
[1680317209656,10.0,20.929,20.918,10.0]
[1680317210869,27.2,20.93,20.918,10.0]
[1680317211170,14.01705923,20.933,20.918,10.0]
[1680317211372,20.0,20.932,20.918,10.0]
[1680317211870,20.0,20.935,20.918,10.0]
[1680317212379,10.0,20.934,20.918,10.0]
[1680317212673,10.0,20.932,20.918,10.0]
[1680317219575,10.0,20.93,20.918,10.0]
[1680317220377,37.2,20.93,20.917,111.2753]
[1680317221978,17.0,20.929,20.917,111.2753]
[1680317222369,10.0,20.928,20.917,111.2753]
[1680317229089,27.2,20.93,20.917,111.2753]
[1680317229383,27.2,20.93,20.918,10.0]
[1680317233193,10.0,20.929,20.917,111.2753]
[1680317235283,10.0,20.929,20.918,10.0]
[1680317239492,10.0,20.929,20.917,111.2753]
[1680317242592,17.0,20.928,20.917,111.2753]
[1680317243789,10.0,20.929,20.917,111.2753]
[1680317244604,17.0,20.928,20.917,111.2753]
[1680317245891,10.0,20.929,20.917,111.2753]
[1680317246201,10.0,20.929,20.914,10.0]
[1680317246410,17.0,20.928,20.914,10.0]
[1680317246891,10.0,20.927,20.914,10.0]
[1680317247602,17.0,20.926,20.914,10.0]
[1680317247900,10.0,20.925,20.914,10.0]
[1680317251001,10.0,20.929,20.914,10.0]
[1680317251805,10.0,20.927,20.914,10.0]
[1680317252802,17.0,20.926,20.914,10.0]
[1680317253203,10.0,20.927,20.914,10.0]
[1680317253408,31.7532268,20.932,20.914,10.0]
[1680317254017,17.06864171,20.931,20.914,10.0]
[1680317254703,17.0,20.93,20.914,10.0]
[1680317255004,10.0,20.929,20.914,10.0]
[1680317261791,17.06864171,20.931,20.914,10.0]
[1680317263213,7.06864171,20.931,20.915,17.0]
[1680317263393,7.06864171,20.931,20.916,10.0]
[1680317264112,7.06864171,20.931,20.917,17.0]
[1680317264297,14.68458509,20.932,20.917,17.0]
[1680317264499,7.06864171,20.933,20.917,17.0]
[1680317264698,20.0,20.932,20.918,10.0]
[1680317264902,27.06864171,20.932,20.918,10.0]
[1680317272112,10.0,20.931,20.918,10.0]
[1680317273798,27.06864171,20.932,20.918,10.0]
[1680317276620,10.0,20.931,20.916,10.0]
[1680317277421,21.75,20.93,20.916,10.0]
[1680317277717,10.0,20.929,20.916,10.0]
[1680317287231,10.0,20.931,20.916,10.0]
[1680317287718,17.06864171,20.931,20.916,10.0]
[1680317289308,7.06864171,20.931,20.917,17.0]
[1680317289508,7.06864171,20.931,20.918,10.0]
[1680317290724,10.0,20.93,20.918,10.0]
[1680317295629,17.06864171,20.931,20.918,10.0]
[1680317295817,7.06864171,20.931,20.918,10.0]
[1680317296521,7.06864171,20.931,20.92,10.0]
[1680317301134,20.0,20.932,20.922,10.0]
[1680317301317,7.06864171,20.932,20.922,10.0]
[1680317308636,7.06864171,20.932,20.92,10.0]
[1680317312836,20.0,20.935,20.921,17.0]
[1680317313243,27.06864171,20.935,20.922,10.0]
[1680317313423,27.06864171,20.935,20.924,10.0]
[1680317316429,10.0,20.934,20.922,10.0]
[1680317316630,20.0,20.933,20.922,10.0]
[1680317316831,27.06864171,20.933,20.922,10.0]
[1680317317034,20.0,20.933,20.922,10.0]
[1680317317231,7.06864171,20.932,20.922,10.0]
[1680317318142,7.06864171,20.932,20.922,9.5]
[1680317318948,10.0,20.931,20.92,10.0]
[1680317319142,10.0,20.931,20.913,29.126]
[1680317319452,17.06864171,20.931,20.913,29.126]
[1680317320149,17.06864171,20.931,20.914,10.0]
[1680317336254,31.61559983,20.931,20.914,10.0]
[1680317340462,7.06864171,20.931,20.914,10.0]
[1680317341953,20.0,20.933,20.92,10.0]
[1680317342159,27.06864171,20.933,20.921,17.0]
[1680317342755,27.06864171,20.933,20.922,10.0]
[1680317343260,27.06864171,20.933,20.924,10.0]
[1680317345555,469.33036623,20.94,20.925,17.0]
[1680317346266,469.33036623,20.94,20.926,10.0]
[1680317346557,469.33036623,20.94,20.928,10.0]
[1680317346963,469.33036623,20.94,20.929,17.0]
[1680317347153,469.33036623,20.94,20.93,10.0]
[1680317349950,171.00107017,20.943,20.928,10.0]
[1680317350150,30.0,20.942,20.928,10.0]
[1680317350350,37.06864171,20.942,20.928,10.0]
[1680317350555,17.0,20.941,20.928,10.0]
[1680317350845,10.0,20.94,20.928,10.0]
[1680317351576,10.0,20.94,20.926,10.0]
[1680317355072,10.0,20.94,20.928,10.0]
[1680317355367,17.06864171,20.941,20.929,17.0]
[1680317355574,7.06864171,20.941,20.93,10.0]
[1680317356960,30.0,20.942,20.93,10.0]
[1680317357159,30.0,20.942,20.931,17.0]
[1680317357359,20.0,20.942,20.931,17.0]
[1680317358069,20.0,20.942,20.93,10.0]
[1680317358070,10.0,20.941,20.93,10.0]
[1680317361974,30.0,20.942,20.93,10.0]
[1680317362180,30.0,20.942,20.931,17.0]
[1680317362366,20.0,20.942,20.931,17.0]
[1680317367081,20.0,20.942,20.932,10.0]
[1680317367279,20.0,20.942,20.933,17.0]
[1680317367774,171.00107017,20.943,20.933,17.0]
[1680317367973,171.00107017,20.943,20.934,10.0]
[1680317368166,171.00107017,20.943,20.936,10.0]
[1680317368366,171.00107017,20.943,20.937,17.0]
[1680317368567,171.00107017,20.943,20.938,10.0]
[1680317368781,171.00107017,20.943,20.939,17.0]
[1680317368971,171.00107017,20.943,20.94,10.0]
[1680317369164,171.00107017,20.943,20.941,17.0]
[1680317369361,171.00107017,20.943,20.942,10.0]
[1680317369564,21.00107017,20.943,20.942,27.0]
[1680317369763,19.115515,20.952,20.942,27.0]
[1680317369979,19.115515,20.952,20.943,17.0]
[1680317370492,20.0,20.951,20.943,17.0]
[1680317370666,20.0,20.951,20.944,10.0]
[1680317370976,20.0,20.951,20.945,17.0]
[1680317371366,19.115515,20.952,20.945,17.0]
[1680317372779,19.115515,20.952,20.943,17.0]
[1680317373582,19.115515,20.952,20.944,10.0]
[1680317373773,19.115515,20.952,20.945,17.0]
[1680317374174,19.115515,20.952,20.946,10.0]
[1680317374374,19.115515,20.952,20.947,17.0]
[1680317374579,19.115515,20.952,20.948,10.0]
[1680317374886,19.115515,20.952,20.949,17.0]
[1680317375366,10.0,20.964,20.95,10.0]
[1680317375566,9.5,20.964,20.951,17.0]
[1680317375775,9.5,20.964,20.952,10.0]
[1680317375970,9.5,20.964,20.954,10.0]
[1680317376369,9.5,20.964,20.955,17.0]
[1680317377587,20.0,20.963,20.955,17.0]
[1680317378567,20.0,20.965,20.955,17.0]
[1680317378769,10.0,20.964,20.955,17.0]
[1680317378969,20.0,20.963,20.955,17.0]
[1680317380380,20.0,20.963,20.952,10.0]
[1680317380772,20.0,20.963,20.953,17.0]
[1680317381092,20.0,20.963,20.954,10.0]
[1680317381385,20.0,20.963,20.955,17.0]
[1680317381596,10.0,20.962,20.952,10.0]
[1680317381888,10.0,20.962,20.953,17.0]
[1680317382090,10.0,20.962,20.951,17.0]
[1680317382395,10.0,20.962,20.946,10.0]
[1680317384390,10.0,20.962,20.945,23.89852284]
[1680317384589,10.0,20.962,20.943,24.66170769]
[1680317385690,9.5,20.962,20.944,150.14592395]
[1680317385990,17.0,20.961,20.945,17.0]
[1680317386490,9.5,20.962,20.945,17.0]
[1680317386677,17.0,20.961,20.945,17.0]
[1680317386875,10.0,20.96,20.945,27.0]
[1680317388086,10.0,20.96,20.941,10.0]
[1680317388291,10.0,20.96,20.916,258.40903009]
[1680317388292,24.06864171,20.959,20.935,116.8357]
[1680317388479,20.0,20.958,20.935,116.8357]
[1680317388789,10.0,20.956,20.935,131.33495366]
[1680317388993,10.0,20.954,20.935,116.8357]
[1680317389190,20.0,20.953,20.935,116.8357]
[1680317389377,17.0,20.952,20.935,116.8357]
[1680317389580,10.0,20.951,20.935,116.8357]
[1680317389892,17.06864171,20.951,20.936,17.0]
[1680317390197,7.06864171,20.95,20.936,17.0]
[1680317390493,10.0,20.949,20.936,17.0]
[1680317390891,7.06864171,20.948,20.936,17.0]
[1680317391694,10.0,20.947,20.933,19.105159]
[1680317391876,47.0,20.947,20.933,19.105159]
[1680317392081,7.06864171,20.946,20.933,19.105159]
[1680317392294,17.0,20.945,20.933,19.105159]
[1680317392594,10.0,20.943,20.933,19.105159]
[1680317392988,17.06864171,20.943,20.933,19.105159]
[1680317396190,17.06864171,20.943,20.927,10.0]
[1680317396400,17.06864171,20.943,20.929,10.0]
[1680317396608,17.06864171,20.943,20.93,17.0]
[1680317396900,17.06864171,20.943,20.931,10.0]
[1680317398289,17.06864171,20.943,20.93,17.0]
[1680317405510,17.06864171,20.943,20.929,10.0]
[1680317406511,17.06864171,20.943,20.928,17.0]
[1680317407106,31.423094,20.943,20.928,17.0]
[1680317411996,31.423094,20.943,20.929,10.0]
[1680317412196,31.423094,20.943,20.93,17.0]
[1680317412709,31.423094,20.943,20.929,10.0]
[1680317413394,31.423094,20.943,20.927,10.0]
[1680317413600,31.423094,20.943,20.928,17.0]
[1680317415390,31.423094,20.943,20.927,10.0]
[1680317415600,17.0,20.942,20.927,10.0]
[1680317415797,10.0,20.941,20.927,10.0]
[1680317416515,10.0,20.941,20.926,119.3434]
[1680317416702,17.0,20.94,20.926,119.3434]
[1680317416906,10.0,20.939,20.926,119.3434]
[1680317418015,10.0,20.939,20.927,10.0]
[1680317419105,10.0,20.939,20.929,10.0]
[1680317419514,27.06,20.94,20.929,10.0]
[1680317419713,10.0,20.941,20.929,10.0]
[1680317419918,17.06864171,20.942,20.929,10.0]
[1680317420098,17.06864171,20.942,20.93,17.0]
[1680317420415,17.06864171,20.942,20.931,10.0]
[1680317422018,17.06864171,20.942,20.929,10.0]
[1680317422408,17.06864171,20.942,20.927,10.0]
[1680317422614,17.06864171,20.942,20.929,10.0]
[1680317425724,7.06864171,20.942,20.929,10.0]
[1680317425921,145.3779,20.944,20.93,17.0]
[1680317426420,152.44654171,20.944,20.931,10.0]
[1680317426638,152.44654171,20.944,20.932,17.0]
[1680317427321,10.0,20.943,20.932,17.0]
[1680317427819,17.06864171,20.943,20.932,17.0]
[1680317432524,17.06864171,20.943,20.931,10.0]
[1680317433529,17.06864171,20.943,20.929,10.0]
[1680317433716,17.06864171,20.943,20.93,17.0]
[1680317434126,7.06864171,20.943,20.931,10.0]
[1680317434313,7.06864171,20.943,20.932,17.0]
[1680317436427,17.06864171,20.943,20.932,17.0]
[1680317438422,17.06864171,20.943,20.931,10.0]
[1680317440416,17.06864171,20.943,20.929,10.0]
[1680317440618,17.06864171,20.943,20.931,10.0]
[1680317441648,10.0,20.942,20.929,10.0]
[1680317442134,7.06864171,20.941,20.929,10.0]
[1680317443435,7.06864171,20.941,20.927,10.0]
[1680317444434,7.06864171,20.941,20.928,17.0]
[1680317444640,7.06864171,20.941,20.929,10.0]
[1680317446232,7.06864171,20.941,20.931,10.0]
[1680317447538,7.06864171,20.941,20.929,10.0]
[1680317448544,7.06864171,20.941,20.928,17.0]
[1680317448724,7.06864171,20.941,20.927,10.0]
[1680317453240,7.06864171,20.941,20.926,119.3434]
[1680317454142,7.06864171,20.941,20.927,10.0]
[1680317454750,10.0,20.939,20.927,10.0]
[1680317455047,17.06864171,20.939,20.927,10.0]
[1680317455428,17.06864171,20.939,20.926,119.3434]
[1680317455924,17.06864171,20.939,20.927,10.0]
[1680317457643,10.0,20.937,20.927,10.0]
[1680317458538,10.0,20.937,20.925,10.0]
[1680317471644,17.06864171,20.939,20.925,10.0]
[1680317472462,17.06864171,20.939,20.926,17.0]
[1680317472755,17.06864171,20.939,20.925,10.0]
[1680317477558,10.0,20.939,20.925,10.0]
[1680317477853,145.3779,20.944,20.927,19.113]
[1680317478161,145.3779,20.944,20.929,10.0]
[1680317478350,152.44654171,20.944,20.93,17.0]
[1680317478756,10.0,20.943,20.931,10.0]
[1680317479066,10.0,20.943,20.932,17.0]
[1680317479660,10.0,20.943,20.931,10.0]
[1680317479962,17.06864171,20.943,20.929,10.0]
[1680317482162,17.06864171,20.943,20.928,10.0]
[1680317482861,10.0,20.941,20.927,10.0]
[1680317483061,17.0,20.94,20.927,10.0]
[1680317483263,10.0,20.939,20.927,10.0]
[1680317485463,10.0,20.939,20.926,110.0963]
[1680317485961,10.0,20.942,20.926,110.0963]
[1680317486260,17.06864171,20.943,20.927,17.0]
[1680317486464,17.06864171,20.943,20.928,10.0]
[1680317486649,17.06864171,20.943,20.929,17.0]
[1680317487158,17.06864171,20.943,20.93,10.0]
[1680317490875,17.0,20.942,20.93,10.0]
[1680317491067,10.0,20.941,20.93,10.0]
[1680317493760,10.0,20.939,20.93,10.0]
[1680317494179,10.0,20.941,20.93,10.0]
[1680317496575,10.0,20.942,20.93,10.0]
[1680317496967,17.06864171,20.942,20.93,10.0]
[1680317499761,10.0,20.94,20.93,10.0]
[1680317502563,17.06864171,20.942,20.93,10.0]
[1680317504379,17.06864171,20.942,20.928,10.0]
[1680317504578,17.0,20.941,20.928,10.0]
[1680317504781,10.0,20.94,20.928,10.0]
[1680317507478,10.0,20.938,20.926,148.05343802]
[1680317507681,10.0,20.938,20.926,110.0963]
[1680317507885,10.0,20.938,20.927,10.0]
[1680317508478,10.0,20.936,20.927,10.0]
[1680317508888,10.0,20.938,20.927,10.0]
[1680317509278,17.0,20.937,20.926,110.0963]
[1680317510191,10.0,20.936,20.926,110.0963]
[1680317510578,10.0,20.936,20.922,111.313]
[1680317514280,10.0,20.934,20.922,111.313]
[1680317514483,37.0,20.933,20.92,31.423094]
[1680317514686,10.0,20.932,20.92,31.423094]
[1680317515077,17.06864171,20.932,20.92,31.423094]
[1680317515699,10.0,20.93,20.92,31.423094]
[1680317517592,17.06864171,20.932,20.921,10.0]
[1680317518393,17.06864171,20.932,20.92,41.423094]
[1680317519197,17.06864171,20.932,20.92,31.423094]
[1680317519385,17.0,20.931,20.92,31.423094]
[1680317519897,10.0,20.93,20.919,117.1285]
[1680317520586,10.0,20.93,20.917,10.0]
[1680317520904,17.0,20.929,20.917,10.0]
[1680317521084,10.0,20.928,20.917,10.0]
[1680317521286,10.0,20.93,20.917,10.0]
[1680317521795,17.06864171,20.932,20.917,10.0]
[1680317522385,17.06864171,20.932,20.919,10.0]
[1680317528596,17.0,20.931,20.919,10.0]
[1680317528907,10.0,20.93,20.919,10.0]
[1680317531089,10.0,20.93,20.913,29.123285]
[1680317531289,17.06864171,20.93,20.914,17.0]
[1680317531500,17.06864171,20.93,20.915,10.0]
[1680317534806,10.0,20.932,20.916,17.0]
[1680317535008,10.0,20.932,20.917,10.0]
[1680317535211,7.06864171,20.931,20.918,17.0]
[1680317535392,7.06864171,20.931,20.917,10.0]
[1680317541706,7.06864171,20.931,20.918,17.0]
[1680317541910,7.06864171,20.931,20.919,10.0]
[1680317542991,7.06864171,20.931,20.917,10.0]
[1680317553837,7.06864171,20.931,20.918,17.0]
[1680317554010,146.8003,20.933,20.918,17.0]
[1680317554011,20.0,20.933,20.918,17.0]
[1680317554236,20.0,20.936,20.92,27.01]
[1680317554423,20.0,20.936,20.921,17.0]
[1680317554722,20.0,20.936,20.922,10.0]
[1680317554926,20.0,20.936,20.923,17.0]
[1680317555226,27.06864171,20.936,20.923,17.0]
[1680317555534,27.06864171,20.936,20.924,10.0]
[1680317556324,10.0,20.942,20.925,17.0]
[1680317556719,10.0,20.942,20.926,10.0]
[1680317556919,10.0,20.942,20.927,17.0]
[1680317557108,10.0,20.942,20.928,10.0]
[1680317560817,10.0,20.942,20.929,17.0]
[1680317561025,10.0,20.942,20.93,10.0]
[1680317564727,9.90856872,20.942,20.93,10.0]
[1680317566639,125.3779,20.944,20.93,10.0]
[1680317566935,20.0,20.943,20.932,10.0]
[1680317567136,20.0,20.943,20.933,17.0]
[1680317567522,20.0,20.943,20.93,10.0]
[1680317567724,10.0,20.942,20.928,10.0]
[1680317567936,10.0,20.942,20.929,17.0]
[1680317570841,10.0,20.942,20.928,10.0]
[1680317572447,10.0,20.942,20.93,10.0]
[1680317573751,10.0,20.942,20.929,17.0]
[1680317573955,10.0,20.942,20.928,24.40582859]
[1680317575244,10.0,20.942,20.928,14.40582859]
[1680317575545,10.0,20.94,20.924,10.0]
[1680317575925,10.0,20.94,20.925,24.37651545]
[1680317576245,10.0,20.94,20.925,10.0]
[1680317576846,10.0,20.94,20.926,17.0]
[1680317577155,10.0,20.94,20.927,10.0]
[1680317579151,10.0,20.94,20.929,10.0]
[1680317580035,10.0,20.942,20.929,10.0]
[1680317580248,10.0,20.943,20.93,17.0]
[1680317580452,115.5579,20.944,20.931,10.0]
[1680317580741,115.5579,20.944,20.932,17.0]
[1680317581048,10.0,20.942,20.932,17.0]
[1680317582846,10.0,20.942,20.931,10.0]
[1680317583244,30.0,20.943,20.933,10.0]
[1680317583430,30.0,20.943,20.934,17.0]
[1680317584553,20.0,20.943,20.934,17.0]
[1680317586340,20.0,20.943,20.933,10.0]
[1680317586737,20.0,20.943,20.935,10.0]
[1680317587652,10.0,20.95,20.935,10.0]
[1680317587833,19.085,20.959,20.936,17.0]
[1680317588158,10.0,20.954,20.937,10.0]
[1680317588352,10.0,20.954,20.938,17.0]
[1680317589458,20.0,20.953,20.938,17.0]
[1680317589661,10.0,20.952,20.938,17.0]
[1680317592465,10.0,20.952,20.939,10.0]
[1680317593549,26.98,20.95,20.935,10.0]
[1680317593750,17.0,20.949,20.93,27.17]
[1680317594257,10.0,20.948,20.93,27.17]
[1680317594957,10.0,20.948,20.934,17.0]
[1680317595164,10.0,20.952,20.934,17.0]
[1680317595367,63.2911,20.955,20.935,10.0]
[1680317595677,63.2911,20.955,20.936,17.0]
[1680317595849,63.2911,20.955,20.937,10.0]
[1680317596167,63.2911,20.955,20.938,17.0]
[1680317596351,63.2911,20.955,20.939,10.0]
[1680317596551,63.2911,20.955,20.94,17.0]
[1680317596851,63.2911,20.955,20.941,10.0]
[1680317597049,63.2911,20.955,20.942,17.0]
[1680317597464,63.2911,20.955,20.941,10.0]
[1680317597868,63.2911,20.955,20.942,17.0]
[1680317599469,20.0,20.954,20.943,10.0]
[1680317599776,10.0,20.953,20.943,10.0]
[1680317600265,63.2911,20.955,20.943,10.0]
[1680317600460,20.0,20.954,20.944,17.0]
[1680317601150,20.0,20.954,20.945,10.0]
[1680317601956,20.0,20.954,20.946,17.0]
[1680317602576,27.19,20.96,20.946,17.0]
[1680317602865,132.2241,20.965,20.946,17.0]
[1680317602866,19.08,20.965,20.946,17.0]
[1680317603167,10.0,20.961,20.946,17.0]
[1680317603667,10.0,20.961,20.947,10.0]
[1680317603961,10.0,20.961,20.949,10.0]
[1680317604549,10.0,20.961,20.95,17.0]
[1680317607465,10.0,20.961,20.949,10.0]
[1680317610370,10.0,20.963,20.95,17.0]
[1680317611050,10.0,20.963,20.951,10.0]
[1680317615273,10.0,20.963,20.949,10.0]
[1680317615579,10.0,20.961,20.947,10.0]
[1680317617264,10.0,20.961,20.946,125.7727]
[1680317617464,10.0,20.961,20.947,17.0]
[1680317617664,10.0,20.961,20.946,115.7727]
[1680317617879,17.0,20.96,20.946,115.7727]
[1680317618181,10.0,20.959,20.947,10.0]
[1680317618881,10.0,20.959,20.946,115.7727]
[1680317625584,10.0,20.959,20.947,10.0]
[1680317628081,10.0,20.959,20.946,115.7727]
[1680317628283,17.0,20.958,20.946,115.7727]
[1680317628492,20.0,20.957,20.939,24.26196994]
[1680317628677,10.0,20.955,20.939,24.26196994]
[1680317628985,37.0,20.954,20.939,24.26196994]
[1680317629193,10.0,20.953,20.939,24.26196994]
[1680317629783,10.0,20.953,20.941,10.0]
[1680317636269,30.0,20.954,20.942,17.0]
[1680317636475,30.0,20.954,20.943,10.0]
[1680317636799,20.0,20.954,20.943,10.0]
[1680317640295,20.0,20.954,20.944,17.0]
[1680317645897,10.0,20.96,20.945,10.0]
[1680317646085,10.0,20.96,20.946,17.0]
[1680317646590,10.0,20.96,20.947,10.0]
[1680317646888,10.0,20.96,20.948,17.0]
[1680317647502,10.0,20.96,20.949,10.0]
[1680317650293,10.0,20.96,20.95,17.0]
[1680317652399,10.0,20.96,20.947,10.0]
[1680317652902,10.0,20.96,20.948,17.0]
[1680317653086,10.0,20.96,20.949,10.0]
[1680317654599,10.0,20.96,20.948,17.0]
[1680317655300,10.0,20.96,20.947,17.0]
[1680317655984,10.0,20.96,20.948,10.0]
[1680317661293,17.0113878,20.967,20.949,17.0]
[1680317661494,17.0113878,20.967,20.95,10.0]
[1680317661686,17.0113878,20.967,20.951,17.0]
[1680317661887,9.0,20.963,20.952,10.0]
[1680317665304,9.0,20.963,20.953,17.0]
[1680317665903,10.0,20.965,20.953,17.0]
[1680317666101,20.0,20.964,20.953,17.0]
[1680317670085,20.0,20.964,20.954,10.0]
[1680317670289,20.0,20.965,20.955,17.0]
[1680317673006,20.0,20.966,20.956,10.0]
[1680317673206,20.0,20.967,20.958,10.0]
[1680317673403,20.0,20.967,20.959,17.0]
[1680317677403,20.0,20.968,20.959,17.0]
[1680317678415,10.0,20.969,20.959,17.0]
[1680317681516,10.0,20.971,20.959,17.0]
[1680317684124,10.0,20.973,20.96,10.0]
[1680317684312,10.0,20.973,20.962,10.0]
[1680317686735,10.0,20.973,20.958,10.0]
[1680317687822,10.0,20.973,20.959,17.0]
[1680317688029,10.0,20.973,20.96,10.0]
[1680317689528,8.5,20.972,20.96,10.0]
[1680317690909,8.5,20.972,20.961,17.0]
[1680317698732,8.5,20.972,20.961,17.0]
[1680317699323,8.5,20.972,20.959,17.0]
[1680317701238,8.5,20.972,20.96,10.0]
[1680317703329,8.5,20.972,20.962,10.0]
[1680317706355,10.0,20.974,20.962,10.0]
[1680317706560,20.0,20.973,20.962,10.0]
[1680317707569,20.0,20.973,20.963,17.0]
[1680317707751,20.0,20.973,20.964,10.0]
[1680317709152,20.0,20.973,20.958,10.0]
[1680317709354,20.0,20.973,20.955,118.921]
[1680317710068,10.0,20.972,20.956,10.0]
[1680317710568,10.0,20.972,20.955,118.921]
[1680317710759,10.0,20.972,20.956,17.0]
[1680317712856,10.0,20.972,20.957,10.0]
[1680317713058,10.0,20.972,20.959,10.0]
[1680317713553,10.0,20.972,20.957,10.0]
[1680317714267,17.0,20.971,20.957,10.0]
[1680317714471,17.0,20.971,20.956,27.0]
[1680317714682,10.0,20.97,20.956,27.0]
[1680317714866,10.0,20.97,20.957,10.0]
[1680317718364,17.0,20.969,20.955,118.921]
[1680317718972,10.0,20.968,20.955,118.921]
[1680317719177,17.0,20.967,20.955,118.921]
[1680317719466,10.0,20.966,20.955,118.921]
[1680317724277,10.0,20.966,20.956,10.0]
[1680317725571,10.0,20.966,20.955,118.921]
[1680317726960,10.0,20.966,20.956,10.0]
[1680317728576,10.0,20.966,20.955,118.921]
[1680317729762,10.0,20.964,20.955,118.921]
[1680317730354,24.20113588,20.966,20.955,118.921]
[1680317730555,30.0,20.973,20.955,118.921]
[1680317730773,27.11,20.97,20.957,10.0]
[1680317730985,30.0,20.973,20.957,10.0]
[1680317731271,30.0,20.973,20.958,17.0]
[1680317731680,30.0,20.973,20.959,10.0]
[1680317731862,30.0,20.973,20.96,17.0]
[1680317732063,30.0,20.973,20.961,10.0]
[1680317734356,30.0,20.973,20.962,17.0]
[1680317734560,30.0,20.973,20.963,10.0]
[1680317734780,20.0,20.973,20.963,10.0]
[1680317734987,20.0,20.974,20.963,10.0]
[1680317735162,20.0,20.974,20.964,17.0]
[1680317735484,20.0,20.974,20.963,10.0]
[1680317735666,10.0,20.973,20.963,10.0]
[1680317737581,10.0,20.973,20.961,10.0]
[1680317737888,10.0,20.973,20.959,10.0]
[1680317738066,10.0,20.973,20.96,17.0]
[1680317738468,10.0,20.973,20.959,10.0]
[1680317738974,10.0,20.973,20.961,10.0]
[1680317740573,10.0,20.973,20.959,10.0]
[1680317741278,10.0,20.973,20.96,80.0]
[1680317741579,10.0,20.973,20.961,10.0]